fUST/lending_fUST_20250717
["ID","MTS","AMOUNT","RATE_DAILY","PERIOD"]
[372621995,1752712251150,-180.64900676,0.00019245,2]
[372621996,1752712251237,-278.10394677,0.00019245,2]
[372621997,1752712251595,-460.0,0.00018422,2]
[372621998,1752712251606,-410.896179,0.00018598,2]
[372621999,1752712251616,-410.896179,0.00018698,2]
[372622000,1752712251626,-410.896179,0.00018871,2]
[372622001,1752712251635,-410.896179,0.00018971,2]
[372622002,1752712251645,-410.896179,0.00019,2]
[372622003,1752712251654,-410.896179,0.00019244,2]
[372622004,1752712251663,-115.08777023,0.00019245,2]
[372622005,1752712251673,-393.191717,0.00019245,2]
[372622006,1752712251682,-206.691954,0.00019245,2]
[372622007,1752712251692,-151.0,0.00019245,2]
[372622008,1752712251702,-671.612702,0.00019245,2]
[372622009,1752712251711,-151.0,0.00019245,2]
[372622010,1752712251721,-671.612702,0.00019245,2]
[372622011,1752712251731,-151.0,0.00019245,2]
[372622012,1752712251744,-151.0,0.00019245,2]
[372622013,1752712251753,-151.0,0.00019245,2]
[372622014,1752712251763,-553.552226,0.00019245,2]
[372622015,1752712251773,-553.552226,0.00019245,2]
[372622016,1752712251782,-1261.362454,0.00019245,2]
[372622017,1752712251792,-1261.362454,0.00019245,2]
[372622018,1752712251802,-154.322868,0.00019245,2]
[372622019,1752712251811,-154.322868,0.00019245,2]
[372622020,1752712251821,-152.083149,0.00019245,2]
[372622021,1752712251830,-152.083149,0.00019245,2]
[372622022,1752712251840,-522.78,0.00019245,2]
[372622023,1752712251850,-2140.19,0.00019245,2]
[372622024,1752712251859,-5576.86,0.00019245,2]
[372622025,1752712251869,-1941.19,0.00019245,2]
[372622026,1752712251878,-460.0,0.00019245,2]
[372622027,1752712251888,-460.0,0.00019246,2]
[372622028,1752712251897,-460.0,0.00019246,2]
[372622029,1752712251907,-460.0,0.00019246,2]
[372622030,1752712251916,-460.0,0.00019246,2]
[372622031,1752712251926,-151.0,0.00019246,2]
[372622032,1752712251943,-151.0,0.00019246,2]
[372622033,1752712251952,-151.0,0.00019246,2]
[372622034,1752712251963,-151.0,0.00019246,2]
[372622035,1752712251974,-151.0,0.00019246,2]
[372622036,1752712251984,-283.533693,0.00019246,2]
[372622037,1752712251993,-283.533693,0.00019246,2]
[372622038,1752712252003,-211.622972,0.00019246,2]
[372622039,1752712252012,-211.622972,0.00019246,2]
[372622040,1752712252022,-170.400833,0.00019246,2]
[372622041,1752712252032,-170.400833,0.00019246,2]
[372622042,1752712252042,-460.0,0.00019246,2]
[372622043,1752712252051,-795.44,0.00019246,2]
[372622044,1752712252060,-743.278756,0.00019246,2]
[372622045,1752712252070,-151.0,0.00019246,2]
[372622046,1752712252079,-183.16881764,0.00019246,2]
[372622047,1752712252090,-743.278756,0.00019246,2]
[372622048,1752712252100,-460.0,0.00019246,2]
[372622049,1752712252109,-565.5,0.00019246,2]
[372622050,1752712252119,-460.0,0.00019246,2]
[372622051,1752712252129,-460.0,0.00019246,2]
[372622052,1752712252139,-460.0,0.00019246,2]
[372622053,1752712252149,-151.0,0.00019246,2]
[372622054,1752712252158,-460.0,0.00019246,2]
[372622055,1752712252169,-5390.671817,0.00019246,2]
[372622056,1752712252182,-316.95189513,0.00019246,2]
[372622057,1752712252199,-4974.98454512,0.00019246,2]
[372622059,1752712357294,299.999999,0.00025,120]
[372622063,1752712646246,335.31649,0.00013699,2]
[372622068,1752712762062,153.0,0.000273,120]
[372622069,1752712788596,153.0,0.000273,120]
[372622074,1752712808801,153.0,0.000181,2]
[372622075,1752712811772,153.0,0.000181,2]
[372622076,1752712814707,153.0,0.000181,2]
[372622077,1752712830967,153.0,0.000181,2]
[372622078,1752712864265,154.43783222,0.000181,3]
[372622080,1752712912489,-242.13978212,0.00018123,2]
[372622082,1752712920985,-242.0799084,0.00018123,2]
[372622083,1752712927404,-460.0,0.00018123,2]
[372622084,1752712930803,-104.93423514,0.00018123,2]
[372622085,1752712933980,10825.0,0.00018,2]
[372622086,1752712951857,-152.4928492,0.00018121,2]
[372622087,1752712954381,-89.64693292,0.00018121,2]
[372622089,1752713123131,-286.47047874,0.00018123,2]
[372622090,1752713127029,-243.43404453,0.00018123,2]
[372622091,1752713128628,-160.29210632,0.00018123,2]
[372622092,1752713130261,-227.81305538,0.00018123,2]
[372622095,1752713221861,828.5650023,0.00017296,2]
[372622101,1752713374510,-290.87262399,0.00018122,2]
[372622102,1752713376125,-285.33287608,0.00018122,2]
[372622104,1752713378310,-203.32661958,0.00018122,2]
[372622105,1752713379849,-23.72635469,0.00018122,2]
[372622164,1752713432489,-160.0,0.0001822,2]
[372622166,1752713432499,-300.0,0.0001822,2]
[372622169,1752713432509,-1200.0,0.0001822,2]
[372622170,1752713432519,-1192.0,0.00018221,2]
[372622173,1752713432528,-162.81104477,0.00018221,2]
[372622175,1752713432540,-312.50955406,0.00018221,2]
[372622177,1752713432550,-460.0,0.00018221,2]
[372622179,1752713432559,-460.0,0.00018221,2]
[372622182,1752713432569,-18.89939148,0.00018221,2]
[372622184,1752713432581,-441.10060852,0.00018221,2]
[372622186,1752713432590,-460.0,0.00018221,2]
[372622188,1752713432599,-460.0,0.00018221,2]
[372622190,1752713432609,-460.0,0.00018221,2]
[372622192,1752713432619,-460.0,0.00018221,2]
[372622196,1752713432628,-408.0906398,0.00018221,2]
[372622199,1752713432640,-2860.5293602,0.00018221,2]
[372622202,1752713432649,-460.0,0.00018221,2]
[372622205,1752713432659,-460.0,0.00018221,2]
[372622208,1752713432668,-116.43038979,0.00018221,2]
[372622273,1752713438404,-109.11465255,0.00018221,2]
[372622275,1752713438414,-460.0,0.00018221,2]
[372622277,1752713438424,-460.0,0.00018221,2]
[372622279,1752713438434,-282.75815685,0.00018221,2]
[372622287,1752713438513,-177.24184315,0.00018221,2]
[372622288,1752713438523,-185.55815685,0.00018222,2]
[372622343,1752713446605,-274.44184315,0.00018222,2]
[372622344,1752713446615,-460.0,0.00018222,2]
[372622345,1752713446625,-98.69478493,0.00018222,2]
[372622346,1752713446636,-208.65521507,0.00018222,2]
[372622347,1752713446645,-460.0,0.00018222,2]
[372622348,1752713446655,-464.03925104,0.00018222,2]
[372622349,1752713446664,-460.0,0.00018222,2]
[372622352,1752713446674,-469.72397983,0.00018222,2]
[372622353,1752713446684,-7.21626717,0.00018222,2]
[372622354,1752713446696,-452.78373283,0.00018222,2]
[372622355,1752713446706,-70.05001847,0.00018222,2]
[372622356,1752713446717,-282.72,0.00018222,2]
[372622368,1752713503969,1100.0,0.00017746,2]
[372622374,1752713558996,-421.1526537,0.00018122,2]
[372622376,1752713561224,-184.69572399,0.00018122,2]
[372622377,1752713563518,-212.23884948,0.00018122,2]
[372622391,1752713657772,108307.20076335,0.000181,2]
[372622400,1752713732011,-194.35291794,0.00018123,2]
[372622401,1752713734233,-226.99453966,0.00018123,2]
[372622402,1752713737046,-187.65826045,0.00018123,2]
[372622404,1752713741198,-159.05619583,0.00018123,2]
[372622405,1752713743065,-247.18083204,0.00018123,2]
[372622406,1752713744960,-393.69717274,0.00018123,2]
[372622408,1752713750428,-218.97095973,0.00018121,2]
[372622409,1752713752185,-293.15608321,0.00018121,2]
[372622410,1752713757471,-203.69928086,0.00018121,2]
[372622411,1752713757504,-94.36622728,0.00018123,2]
[372622412,1752713759732,-330.36383892,0.00018123,2]
[372622415,1752713761114,-23663.0,0.00018123,2]
[372622416,1752713765221,-34.18009534,0.00018123,2]
[372622421,1752713801901,318.550665,0.00013699,2]
[372622425,1752713942210,-182.18261433,0.0001812,2]
[372622426,1752713946668,-185.4413412,0.0001812,2]
[372622427,1752713950224,-153.33833505,0.0001812,2]
[372622428,1752713952961,-105.38574271,0.0001812,2]
[372622429,1752713955102,13993.0,0.00024,120]
[372622459,1752714136790,-286.35394024,0.00018111,2]
[372622460,1752714140183,-190.27900712,0.00018111,2]
[372622461,1752714142769,-71.42158176,0.00018111,2]
[372622466,1752714279864,500.0,6.8e-07,120]
[372622467,1752714288492,250.0,0.00018019,2]
[372622468,1752714394545,-277.22562023,0.00018111,2]
[372622469,1752714396297,-202.32209275,0.00018111,2]
[372622475,1752714606092,-199.43471943,0.00018108,2]
[372622476,1752714610123,-0.09061335,0.00018108,2]
[372622494,1752714631813,-151.0,0.000182,2]
[372622495,1752714631823,-151.0,0.000182,2]
[372622497,1752714631832,-151.0,0.000182,2]
[372622499,1752714631841,-151.0,0.000182,2]
[372622500,1752714631851,-151.0,0.000182,2]
[372622502,1752714631860,-151.0,0.000182,2]
[372622503,1752714631870,-151.0,0.000182,2]
[372622506,1752714631880,-151.0,0.000182,2]
[372622507,1752714631889,-151.0,0.000182,2]
[372622508,1752714631898,-151.0,0.000182,2]
[372622510,1752714631908,-151.0,0.000182,2]
[372622512,1752714631918,-151.0,0.000182,2]
[372622514,1752714631927,-151.0,0.000182,2]
[372622515,1752714631936,-2302.54800905,0.000182,2]
[372622562,1752714637782,-460.0,0.00018199,2]
[372622564,1752714637792,-460.0,0.00018199,2]
[372622567,1752714637803,-22697.45199095,0.000182,2]
[372622570,1752714637813,-151.0,0.000182,2]
[372622573,1752714637822,-151.0,0.000182,2]
[372622576,1752714637832,-151.0,0.000182,2]
[372622578,1752714637842,-151.0,0.000182,2]
[372622580,1752714637853,-18856.03842425,0.000182,2]
[372622583,1752714637863,-151.0,0.000182,2]
[372622586,1752714637873,-151.0,0.000182,2]
[372622589,1752714637882,-151.0,0.000182,2]
[372622592,1752714637892,-3801.642,0.000182,2]
[372622595,1752714637902,-151.0,0.000182,2]
[372622598,1752714637911,-151.0,0.000182,2]
[372622601,1752714637921,-151.0,0.000182,2]
[372622605,1752714637931,-151.0,0.000182,2]
[372622608,1752714637940,-151.0,0.000182,2]
[372622611,1752714637950,-151.0,0.000182,2]
[372622614,1752714637959,-151.0,0.000182,2]
[372622617,1752714637968,-151.0,0.000182,2]
[372622619,1752714637978,-151.0,0.000182,2]
[372622621,1752714637988,-151.0,0.000182,2]
[372622623,1752714637997,-151.0,0.000182,2]
[372622625,1752714638009,-151.0,0.000182,2]
[372622626,1752714638019,-151.0,0.000182,2]
[372622628,1752714638028,-151.0,0.000182,2]
[372622630,1752714638038,-151.0,0.000182,2]
[372622633,1752714638049,-151.0,0.000182,2]
[372622635,1752714638058,-151.0,0.000182,2]
[372622637,1752714638068,-151.0,0.000182,2]
[372622639,1752714638077,-151.0,0.000182,2]
[372622641,1752714638086,-151.0,0.000182,2]
[372622643,1752714638096,-151.0,0.000182,2]
[372622645,1752714638105,-151.0,0.000182,2]
[372622647,1752714638114,-151.0,0.000182,2]
[372622649,1752714638123,-151.0,0.000182,2]
[372622651,1752714638133,-151.0,0.000182,2]
[372622653,1752714638142,-151.0,0.000182,2]
[372622655,1752714638152,-151.0,0.000182,2]
[372622657,1752714638162,-207.4,0.000182,2]
[372622659,1752714638171,-151.0,0.000182,2]
[372622661,1752714638181,-189.8563729,0.000182,2]
[372622663,1752714638191,-151.0,0.000182,2]
[372622676,1752714638304,-151.0,0.000182,2]
[372622678,1752714638315,-151.0,0.000182,2]
[372622680,1752714638325,-151.0,0.000182,2]
[372622682,1752714638334,-151.0,0.000182,2]
[372622684,1752714638343,-151.0,0.000182,2]
[372622686,1752714638353,-151.0,0.000182,2]
[372622688,1752714638362,-151.0,0.000182,2]
[372622690,1752714638372,-151.0,0.000182,2]
[372622692,1752714638382,-151.0,0.000182,2]
[372622694,1752714638391,-188.000001,0.000182,2]
[372622696,1752714638401,-151.0,0.000182,2]
[372622698,1752714638411,-151.0,0.000182,2]
[372622700,1752714638420,-151.0,0.000182,2]
[372622702,1752714638430,-151.0,0.000182,2]
[372622704,1752714638440,-151.0,0.000182,2]
[372622706,1752714638449,-151.0,0.000182,2]
[372622709,1752714638460,-151.0,0.000182,2]
[372622711,1752714638469,-500.0,0.000182,2]
[372622713,1752714638479,-500.0,0.000182,2]
[372622715,1752714638489,-500.0,0.000182,2]
[372622717,1752714638499,-500.0,0.000182,2]
[372622719,1752714638509,-500.0,0.000182,2]
[372622721,1752714638517,-500.0,0.000182,2]
[372622723,1752714638528,-500.0,0.000182,2]
[372622725,1752714638538,-500.0,0.000182,2]
[372622727,1752714638546,-500.0,0.000182,2]
[372622729,1752714638558,-500.0,0.000182,2]
[372622731,1752714638567,-500.0,0.000182,2]
[372622733,1752714638577,-500.0,0.000182,2]
[372622735,1752714638587,-500.0,0.000182,2]
[372622737,1752714638596,-500.0,0.000182,2]
[372622739,1752714638606,-300.0,0.00018208,2]
[372622741,1752714638615,-300.0,0.00018208,2]
[372622743,1752714638625,-300.0,0.00018208,2]
[372622745,1752714638634,-1200.0,0.00018208,2]
[372622747,1752714638649,-393.0,0.00018209,2]
[372622749,1752714638659,-460.0,0.00018209,2]
[372622751,1752714638669,-460.0,0.00018209,2]
[372622753,1752714638678,-319.44111477,0.00018209,2]
[372622755,1752714638688,-550.21841317,0.00018209,2]
[372622757,1752714638697,-460.0,0.00018209,2]
[372622759,1752714638707,-460.0,0.00018209,2]
[372622761,1752714638717,-460.0,0.00018209,2]
[372622763,1752714638728,-460.0,0.00018209,2]
[372622765,1752714638737,-499.56681828,0.00018209,2]
[372622767,1752714638747,-460.0,0.00018209,2]
[372622769,1752714638756,-460.0,0.00018209,2]
[372622771,1752714638766,-3312.09,0.00018209,2]
[372622773,1752714638776,-460.0,0.00018209,2]
[372622775,1752714638785,-460.0,0.00018209,2]
[372622777,1752714638795,-460.0,0.00018209,2]
[372622779,1752714638805,-460.0,0.00018209,2]
[372622781,1752714638815,-17561.12021744,0.00018209,2]
[372622783,1752714638824,-460.0,0.0001821,2]
[372622785,1752714638834,-516.52,0.0001821,2]
[372622787,1752714638843,-460.0,0.0001821,2]
[372622789,1752714638853,-460.0,0.0001821,2]
[372622791,1752714638862,-460.0,0.0001821,2]
[372622793,1752714638871,-460.0,0.0001821,2]
[372622795,1752714638881,-460.0,0.0001821,2]
[372622797,1752714638891,-462.65100743,0.0001821,2]
[372622799,1752714638900,-460.0,0.0001821,2]
[372622801,1752714638910,-460.0,0.0001821,2]
[372622804,1752714638919,-5208.23,0.0001821,2]
[372622806,1752714638930,-7796.58,0.0001821,2]
[372622808,1752714638941,-460.0,0.0001821,2]
[372622810,1752714638951,-972.56,0.0001821,2]
[372622812,1752714638960,-460.0,0.0001821,2]
[372622813,1752714638970,-559.81,0.0001821,2]
[372622816,1752714638980,-460.0,0.0001821,2]
[372622818,1752714638990,-460.0,0.0001821,2]
[372622820,1752714639000,-591.4461622,0.0001821,2]
[372622822,1752714639009,-3179.26,0.0001821,2]
[372622824,1752714639019,-3543.67,0.0001821,2]
[372622826,1752714639028,-460.0,0.0001821,2]
[372622828,1752714639038,-460.0,0.0001821,2]
[372622830,1752714639047,-460.0,0.0001821,2]
[372622832,1752714639057,-2949.71,0.0001821,2]
[372622834,1752714639066,-889.29,0.0001821,2]
[372622836,1752714639076,-1140.36,0.00018211,3]
[372622838,1752714639086,-570.18,0.00018211,3]
[372622840,1752714639095,-285.09,0.00018211,3]
[372622842,1752714639105,-855.32,0.00018211,3]
[372622844,1752714639114,-3070.14826294,0.00018219,2]
[372622846,1752714639124,-460.0,0.00018219,2]
[372622848,1752714639133,-460.0,0.00018219,2]
[372622850,1752714639142,-460.0,0.00018219,2]
[372622852,1752714639152,-460.0,0.00018219,2]
[372622855,1752714639161,-460.0,0.00018219,2]
[372622857,1752714639171,-460.0,0.00018219,2]
[372622859,1752714639180,-460.0,0.00018219,2]
[372622861,1752714639190,-460.0,0.00018219,2]
[372622863,1752714639199,-459.70574999,0.00018219,2]
[372622865,1752714639209,-460.0,0.00018219,2]
[372622867,1752714639219,-460.0,0.00018219,2]
[372622869,1752714639230,-460.0,0.00018219,2]
[372622871,1752714639239,-460.0,0.00018219,2]
[372622873,1752714639249,-460.0,0.00018219,2]
[372622876,1752714639259,-460.0,0.00018219,2]
[372622878,1752714639270,-460.0,0.00018219,2]
[372622880,1752714639280,-460.0,0.00018219,2]
[372622882,1752714639290,-460.0,0.00018219,2]
[372622884,1752714639300,-460.0,0.00018219,2]
[372622886,1752714639309,-460.0,0.00018219,2]
[372622889,1752714639319,-460.0,0.00018219,2]
[372622891,1752714639328,-460.0,0.00018219,2]
[372622894,1752714639339,-460.0,0.00018219,2]
[372622897,1752714639348,-460.0,0.00018219,2]
[372622900,1752714639358,-463.21267653,0.00018219,2]
[372622902,1752714639367,-460.0,0.00018219,2]
[372622905,1752714639377,-460.0,0.00018219,2]
[372622907,1752714639386,-460.0,0.00018219,2]
[372622910,1752714639396,-460.0,0.00018219,2]
[372622912,1752714639407,-460.0,0.00018219,2]
[372622914,1752714639416,-460.0,0.00018219,2]
[372622916,1752714639426,-460.0,0.00018219,2]
[372622918,1752714639435,-460.0,0.00018219,2]
[372622920,1752714639446,-461.10687664,0.00018219,2]
[372622922,1752714639456,-460.0,0.00018219,2]
[372622925,1752714639465,-460.0,0.00018219,2]
[372622927,1752714639477,-460.0,0.00018219,2]
[372622929,1752714639486,-460.0,0.00018219,2]
[372622931,1752714639496,-460.0,0.00018219,2]
[372622933,1752714639506,-460.0,0.00018219,2]
[372622935,1752714639515,-460.0,0.00018219,2]
[372622937,1752714639525,-460.0,0.00018219,2]
[372622939,1752714639535,-460.0,0.00018219,2]
[372622941,1752714639544,-460.0,0.00018219,2]
[372622943,1752714639554,-460.0,0.00018219,2]
[372622945,1752714639564,-460.0,0.00018219,2]
[372622947,1752714639574,-460.0,0.00018219,2]
[372622949,1752714639583,-460.0,0.00018219,2]
[372622951,1752714639593,-460.0,0.00018219,2]
[372622953,1752714639603,-460.0,0.00018219,2]
[372622955,1752714639612,-460.0,0.00018219,2]
[372622957,1752714639622,-2223.16,0.00018219,2]
[372622959,1752714639632,-460.0,0.00018219,2]
[372622961,1752714639643,-593.5,0.00018219,2]
[372622963,1752714639658,-460.0,0.00018219,2]
[372622965,1752714639668,-460.0,0.00018219,2]
[372622967,1752714639677,-924.34,0.00018219,2]
[372622969,1752714639687,-460.0,0.00018219,2]
[372622971,1752714639698,-460.84071363,0.00018219,2]
[372622973,1752714639707,-460.0,0.00018219,2]
[372622975,1752714639717,-460.0,0.00018219,2]
[372622977,1752714639728,-460.0,0.00018219,2]
[372622979,1752714639738,-460.0,0.00018219,2]
[372622981,1752714639748,-460.0,0.00018219,2]
[372622983,1752714639758,-460.0,0.00018219,2]
[372622985,1752714639767,-460.0,0.00018219,2]
[372622987,1752714639776,-460.0,0.00018219,2]
[372622989,1752714639786,-460.0,0.00018219,2]
[372622991,1752714639795,-460.0,0.00018219,2]
[372622994,1752714639805,-744.57,0.00018219,2]
[372622996,1752714639815,-460.0,0.00018219,2]
[372622998,1752714639825,-460.0,0.00018219,2]
[372623000,1752714639834,-460.0,0.00018219,2]
[372623002,1752714639844,-460.0,0.00018219,2]
[372623004,1752714639854,-644.37,0.00018219,2]
[372623006,1752714639863,-460.0,0.00018219,2]
[372623008,1752714639873,-460.0,0.00018219,2]
[372623010,1752714639883,-462.44721074,0.00018219,2]
[372623012,1752714639893,-460.0,0.00018219,2]
[372623014,1752714639902,-1431.13,0.00018219,2]
[372623016,1752714639912,-460.0,0.00018219,2]
[372623018,1752714639922,-460.0,0.00018219,2]
[372623020,1752714639931,-461.4511122,0.00018219,2]
[372623022,1752714639941,-460.0,0.00018219,2]
[372623024,1752714639950,-730.95,0.00018219,2]
[372623026,1752714639960,-460.0,0.00018219,2]
[372623028,1752714639971,-460.0,0.00018219,2]
[372623030,1752714639981,-460.0,0.00018219,2]
[372623032,1752714639991,-460.0,0.00018219,2]
[372623034,1752714640000,-460.0,0.00018219,2]
[372623036,1752714640010,-491.52768805,0.00018219,2]
[372623038,1752714640019,-460.0,0.00018219,2]
[372623040,1752714640028,-500.0,0.00018219,2]
[372623042,1752714640038,-460.0,0.00018219,2]
[372623044,1752714640047,-460.0,0.00018219,2]
[372623046,1752714640057,-460.0,0.00018219,2]
[372623048,1752714640067,-460.0,0.00018219,2]
[372623050,1752714640076,-460.0,0.00018219,2]
[372623052,1752714640085,-460.0,0.00018219,2]
[372623054,1752714640095,-460.0,0.00018219,2]
[372623056,1752714640105,-460.0,0.00018219,2]
[372623058,1752714640114,-460.0,0.00018219,2]
[372623060,1752714640124,-460.0,0.00018219,2]
[372623062,1752714640134,-460.0,0.00018219,2]
[372623070,1752714640143,-460.0,0.0001822,2]
[372623072,1752714640240,-460.0,0.0001822,2]
[372623074,1752714640249,-460.0,0.0001822,2]
[372623075,1752714640259,-461.0627595,0.0001822,2]
[372623076,1752714640268,-460.0,0.0001822,2]
[372623077,1752714640278,-460.0,0.0001822,2]
[372623078,1752714640288,-547.24862779,0.0001822,2]
[372623079,1752714640298,-460.0,0.0001822,2]
[372623080,1752714640307,-460.0,0.0001822,2]
[372623081,1752714640317,-460.0,0.0001822,2]
[372623082,1752714640326,-440.26770988,0.0001822,2]
[372623083,1752714640336,-460.0,0.0001822,2]
[372623084,1752714640345,-460.0,0.0001822,2]
[372623085,1752714640354,-157.026,0.0001822,2]
[372623086,1752714640364,-460.0,0.0001822,2]
[372623087,1752714640375,-1808.03,0.0001822,2]
[372623088,1752714640386,-460.0,0.0001822,2]
[372623089,1752714640395,-460.0,0.0001822,2]
[372623090,1752714640404,-662.7,0.0001822,2]
[372623091,1752714640414,-460.0,0.0001822,2]
[372623092,1752714640423,-460.0,0.0001822,2]
[372623093,1752714640432,-582.19,0.0001822,2]
[372623094,1752714640441,-460.0,0.0001822,2]
[372623095,1752714640450,-460.0,0.0001822,2]
[372623096,1752714640459,-285.2265671,0.0001822,2]
[372623097,1752714640468,-661.96,0.0001822,2]
[372623098,1752714640477,-943.34,0.0001822,2]
[372623099,1752714640486,-460.0,0.0001822,2]
[372623100,1752714640496,-460.0,0.0001822,2]
[372623101,1752714640505,-349.21344755,0.00018221,2]
[372623102,1752714640514,-460.0,0.00018221,2]
[372623103,1752714640523,-460.0,0.00018221,2]
[372623104,1752714640532,-460.0,0.00018221,2]
[372623105,1752714640541,-460.0,0.00018221,2]
[372623106,1752714640551,-460.0,0.00018221,2]
[372623107,1752714640560,-460.0,0.00018221,2]
[372623108,1752714640569,-460.0,0.00018221,2]
[372623109,1752714640578,-460.0,0.00018221,2]
[372623110,1752714640587,-460.0,0.00018221,2]
[372623111,1752714640597,-460.0,0.00018221,2]
[372623112,1752714640606,-460.0,0.00018221,2]
[372623113,1752714640615,-460.0,0.00018221,2]
[372623114,1752714640624,-460.0,0.00018221,2]
[372623115,1752714640634,-557.22,0.00018221,2]
[372623116,1752714640644,-460.0,0.00018221,2]
[372623117,1752714640658,-747.63,0.00018221,2]
[372623118,1752714640668,-460.0,0.00018221,2]
[372623119,1752714640677,-460.0,0.00018221,2]
[372623120,1752714640687,-842.3,0.00018221,2]
[372623121,1752714640698,-460.0,0.00018221,2]
[372623122,1752714640708,-462.18023307,0.00018221,2]
[372623123,1752714640718,-460.0,0.00018221,2]
[372623124,1752714640731,-460.0,0.00018221,2]
[372623125,1752714640741,-500.0,0.00018221,2]
[372623126,1752714640751,-610.92,0.00018221,2]
[372623127,1752714640761,-1135.39,0.00018221,2]
[372623128,1752714640771,-1042.86,0.00018221,2]
[372623129,1752714640780,-460.0,0.00018221,2]
[372623130,1752714640790,-460.0,0.00018221,2]
[372623131,1752714640799,-460.0,0.00018221,2]
[372623132,1752714640809,-460.0,0.00018221,2]
[372623133,1752714640818,-460.0,0.00018221,2]
[372623134,1752714640828,-460.0,0.00018221,2]
[372623135,1752714640837,-460.0,0.00018221,2]
[372623136,1752714640846,-601.56278443,0.00018221,2]
[372623137,1752714640856,-460.0,0.00018221,2]
[372623138,1752714640865,-460.0,0.00018221,2]
[372623139,1752714640875,-460.0,0.00018221,2]
[372623140,1752714640885,-460.0,0.00018221,2]
[372623141,1752714640898,-460.0,0.00018221,2]
[372623142,1752714640907,-460.0,0.00018221,2]
[372623144,1752714640917,-460.0,0.00018221,2]
[372623145,1752714640927,-879.81,0.00018221,2]
[372623147,1752714640937,-151.0,0.00018221,2]
[372623149,1752714640947,-574.69,0.00018221,2]
[372623150,1752714640956,-5185.07,0.00018221,2]
[372623151,1752714640966,-2044.86,0.00018221,2]
[372623152,1752714640978,-460.0,0.00018221,2]
[372623153,1752714640988,-1823.31,0.00018221,2]
[372623154,1752714640998,-460.0,0.00018221,2]
[372623155,1752714641007,-460.0,0.00018221,2]
[372623156,1752714641017,-544.42,0.00018221,2]
[372623157,1752714641026,-460.0,0.00018221,2]
[372623158,1752714641037,-5784.77,0.00018221,2]
[372623159,1752714641047,-460.0,0.00018221,2]
[372623160,1752714641056,-481.90635901,0.00018221,2]
[372623161,1752714641066,-2654.16,0.00018221,2]
[372623162,1752714641075,-1986.3,0.00018221,2]
[372623164,1752714641085,-151.0,0.00018221,2]
[372623166,1752714641094,-460.0,0.00018221,2]
[372623167,1752714641103,-617.29,0.00018221,2]
[372623168,1752714641113,-460.0,0.00018221,2]
[372623169,1752714641125,-1372.96,0.00018221,2]
[372623170,1752714641134,-460.0,0.00018221,2]
[372623171,1752714641144,-183.91068877,0.00018221,2]
[372623172,1752714641153,-3138.76,0.00018221,2]
[372623173,1752714641163,-460.0,0.00018221,2]